Workbook

Sheet JAN
A1: CLERK OF THE COURTS
A2: BREVARD COUNTY, FLORIDA
A3: Document Source Statistics January 2017
A4: Number of Documents Filed by Case Category
A6: Case | B6: Category | D6: Total # of Documents Filed | E6: Documents Filed InCourt | F6: Documents Filed Informix | G6: Documents e-Filed | H6: Total Docs Auto-Docketed | I6: % of TOTAL InCourt | J6: % of TOTAL Informix | K6: % of TOTAL e-Filed | L6: Total % of Documents Auto Docketed
A7: AP | B7: APPEALS | D7: 63 | E7: 0 | F7: 0 | G7: 50 | H7: =SUM(G7) -> 50 | I7: =IF($D7>0,E7/$D7,0) -> 0 | J7: =IF($D7>0,F7/$D7,0) -> 0 | K7: =IF($D7>0,G7/$D7,0) -> 0.7936507937 | L7: =SUM(I7:K7) -> 0.7936507937
A8: CA | B8: CIRCUIT CIVIL | D8: 16052 | E8: 0 | F8: 0 | G8: 13249 | H8: 13249 | I8: =IF($D8>0,E8/$D8,0) -> 0 | J8: 0 | K8: 0.825380015 | L8: =SUM(I8:K8) -> 0.825380015
A9: SC | B9: COUNTY CIVIL SMALL CLAIMS | D9: 4365 | E9: 0 | F9: 0 | G9: 3534 | H9: 3534 | I9: 0 | J9: 0 | K9: 0.8096219931 | L9: 0.8096219931
A10: DR | B10: CIRCUIT CIVIL FAMILY | D10: 14919 | E10: 0 | F10: 0 | G10: 7590 | H10: 7590 | I10: 0 | J10: 0 | K10: 0.5087472351 | L10: 0.5087472351
A11: CP | B11: CIRCUIT CIVIL PROBATE | D11: 4084 | E11: 0 | F11: 0 | G11: 3358 | H11: 3358 | I11: 0 | J11: 0 | K11: 0.8222331048 | L11: 0.8222331048
A12: GA | B12: CIRCUIT CIVIL GUARDIANSHIP | D12: 1536 | E12: 0 | F12: 0 | G12: 1438 | H12: 1438 | I12: 0 | J12: 0 | K12: 0.9361979167 | L12: 0.9361979167
A13: MH | B13: CIRCUIT CIVIL MENTAL HEALTH | D13: 716 | E13: 0 | F13: 0 | G13: 262 | H13: 262 | I13: 0 | J13: 0 | K13: 0.3659217877 | L13: 0.3659217877
A14: CC | B14: COUNTY CIVIL | D14: 5146 | E14: 0 | F14: 0 | G14: 3484 | H14: 3484 | I14: 0 | J14: 0 | K14: 0.6770307035 | L14: 0.6770307035
A15: DP | B15: CIRCUIT JUVENILE DEPENDENCY | D15: 2913 | E15: 0 | F15: 0 | G15: 2111 | H15: 2111 | I15: 0 | J15: 0 | K15: 0.7246824579 | L15: 0.7246824579
A16: TOTAL OF CIVIL DOCUMENTS | D16: =SUM(D7:D15) -> 49794 | E16: =SUM(E7:E15) -> 0 | F16: =SUM(F7:F15) -> 0 | G16: =SUM(G7:G15) -> 35076 | H16: 35076 | I16: =IF($D16>0,E16/$D16,0) -> 0 | J16: =IF($D16>0,F16/$D16,0) -> 0 | K16: =IF($D16>0,G16/$D16,0) -> 0.7044222195 | L16: 0.7044222195
A17: .
A18: CJ | B18: CIRCUIT JUVENILE DELINQUENCY | D18: 7766 | E18: 5335 | F18: 10 | G18: 1259 | H18: 1259 | I18: =IF($D18>0,E18/$D18,0) -> 0.6869688385 | J18: =IF($D18>0,F18/$D18,0) -> 0.001287664177 | K18: =IF($D18>0,G18/$D18,0) -> 0.1621169199 | L18: 0.8503734226
A19: CF | B19: CIRCUIT CRIMINAL FELONY | D19: 29385 | E19: 9575 | F19: 457 | G19: 7106 | H19: 7106 | I19: 0.3258465203 | J19: 0.01555215246 | K19: 0.2418240599 | L19: 0.5832227327
A20: MM | B20: COUNTY CRIMINAL MISDEMEANOR | D20: 13824 | E20: 5803 | F20: 156 | G20: 2247 | H20: 2247 | I20: 0.4197771991 | J20: 0.01128472222 | K20: 0.1625434028 | L20: 0.5936053241
A21: CO | B21: COUNTY ORDINANCE | D21: 61 | E21: 23 | F21: 0 | G21: 7 | H21: 7 | I21: 0.3770491803 | J21: 0 | K21: 0.1147540984 | L21: 0.4918032787
A22: MO | B22: COUNTY COURT MUNICIPAL ORDINANCE | D22: 149 | E22: 79 | F22: 6 | G22: 17 | H22: 17 | I22: 0.5302013423 | J22: 0.04026845638 | K22: 0.1140939597 | L22: 0.6845637584
A23: IN | B23: COUNTY COURT INFRACTIONS | D23: 652 | E23: 25 | F23: 0 | G23: 4 | H23: 4 | I23: 0.03834355828 | J23: 0 | K23: 0.006134969325 | L23: 0.04447852761
A24: CT | B24: COUNTY CRIMINAL TRAFFIC | D24: 12023 | E24: 5761 | F24: 291 | G24: 1575 | H24: 1575 | I24: 0.4791649339 | J24: 0.02420360975 | K24: 0.1309989187 | L24: 0.6343674624
A25: TOTAL OF CRIMINAL DOCUMENTS | D25: =SUM(D18:D24) -> 63860 | E25: =SUM(E18:E24) -> 26601 | F25: =SUM(F18:F24) -> 920 | G25: =SUM(G18:G24) -> 12215 | H25: =SUM(E25:G25) -> 39736 | I25: =IF($D25>0,E25/$D25,0) -> 0.4165518321 | J25: 0.01440651425 | K25: 0.1912777952 | L25: =IF(G25>0,H25/$D25,0) -> 0.6222361416
A27: TR | B27: COUNTY CIVIL TRAFFIC | D27: 8812 | E27: 792 | F27: 1828 | G27: 213 | H27: =SUM(E27:G27) -> 2833 | I27: =IF($D27>0,E27/$D27,0) -> 0.08987743985 | J27: =IF($D27>0,F27/$D27,0) -> 0.207444394 | K27: 0.0241715842 | L27: 0.3214934181
A29: TOTAL ALL COURT DOCUMENTS | D29: =D16+D25+D27 -> 122466 | E29: =E16+E25+E27 -> 27393 | F29: =F16+F25+F27 -> 2748 | G29: =G16+G25+G27 -> 47504 | H29: =SUM(E29:G29) -> 77645 | I29: =IF($D29>0,E29/$D29,0) -> 0.2236784087 | J29: =IF($D29>0,F29/$D29,0) -> 0.022438881 | K29: 0.3878954159 | L29: 0.6340127056

Sheet FEB
A1: CLERK OF THE COURTS
A2: BREVARD COUNTY, FLORIDA
A3: Document Source Statistics February 2017
A4: Number of Documents Filed by Case Category
A6: Case | B6: Category | D6: Total # of Documents Filed | E6: Documents Filed InCourt | F6: Documents Filed Informix | G6: Documents e-Filed | H6: Total Docs Auto-Docketed | I6: % of TOTAL InCourt | J6: % of TOTAL Informix | K6: % of TOTAL e-Filed | L6: Total % of Documents Auto Docketed
A7: AP | B7: APPEALS | H7: =SUM(G7) -> 0 | I7: =IF($D7>0,E7/$D7,0) -> 0 | J7: =IF($D7>0,F7/$D7,0) -> 0 | K7: =IF($D7>0,G7/$D7,0) -> 0 | L7: =SUM(I7:K7) -> 0
A8: CA | B8: CIRCUIT CIVIL | H8: 0 | I8: =IF($D8>0,E8/$D8,0) -> 0 | J8: 0 | K8: 0 | L8: =SUM(I8:K8) -> 0
A9: SC | B9: COUNTY CIVIL SMALL CLAIMS | H9: 0 | I9: 0 | J9: 0 | K9: 0 | L9: 0
A10: DR | B10: CIRCUIT CIVIL FAMILY | H10: 0 | I10: 0 | J10: 0 | K10: 0 | L10: 0
A11: CP | B11: CIRCUIT CIVIL PROBATE | H11: 0 | I11: 0 | J11: 0 | K11: 0 | L11: 0
A12: GA | B12: CIRCUIT CIVIL GUARDIANSHIP | H12: 0 | I12: 0 | J12: 0 | K12: 0 | L12: 0
A13: MH | B13: CIRCUIT CIVIL MENTAL HEALTH | H13: 0 | I13: 0 | J13: 0 | K13: 0 | L13: 0
A14: CC | B14: COUNTY CIVIL | H14: 0 | I14: 0 | J14: 0 | K14: 0 | L14: 0
A15: DP | B15: CIRCUIT JUVENILE DEPENDENCY | H15: 0 | I15: 0 | J15: 0 | K15: 0 | L15: 0
A16: TOTAL OF CIVIL DOCUMENTS | D16: =SUM(D7:D15) -> 0 | E16: =SUM(E7:E15) -> 0 | F16: =SUM(F7:F15) -> 0 | G16: =SUM(G7:G15) -> 0 | H16: 0 | I16: =IF($D16>0,E16/$D16,0) -> 0 | J16: =IF($D16>0,F16/$D16,0) -> 0 | K16: =IF($D16>0,G16/$D16,0) -> 0 | L16: 0
A17: .
A18: CJ | B18: CIRCUIT JUVENILE DELINQUENCY | H18: 0 | I18: =IF($D18>0,E18/$D18,0) -> 0 | J18: 0 | K18: 0 | L18: 0
A19: CF | B19: CIRCUIT CRIMINAL FELONY | H19: 0 | I19: 0 | J19: 0 | K19: 0 | L19: 0
A20: MM | B20: COUNTY CRIMINAL MISDEMEANOR | H20: 0 | I20: 0 | J20: 0 | K20: 0 | L20: 0
A21: CO | B21: COUNTY ORDINANCE | H21: 0 | I21: 0 | J21: 0 | K21: 0 | L21: 0
A22: MO | B22: COUNTY COURT MUNICIPAL ORDINANCE | H22: 0 | I22: 0 | J22: 0 | K22: 0 | L22: 0
A23: IN | B23: COUNTY COURT INFRACTIONS | H23: 0 | I23: 0 | J23: 0 | K23: 0 | L23: 0
A24: CT | B24: COUNTY CRIMINAL TRAFFIC | H24: 0 | I24: 0 | J24: 0 | K24: 0 | L24: 0
A25: TOTAL OF CRIMINAL DOCUMENTS | D25: =SUM(D18:D24) -> 0 | E25: =SUM(E18:E24) -> 0 | F25: =SUM(F18:F24) -> 0 | G25: =SUM(G18:G24) -> 0 | H25: =SUM(E25:G25) -> 0 | I25: =IF($D25>0,E25/$D25,0) -> 0 | J25: 0 | K25: 0 | L25: =IF(G25>0,H25/$D25,0) -> 0
A27: TR | B27: COUNTY CIVIL TRAFFIC | H27: =SUM(E27:G27) -> 0 | I27: =IF($D27>0,E27/$D27,0) -> 0 | J27: =IF($D27>0,F27/$D27,0) -> 0 | K27: 0 | L27: 0
A29: TOTAL ALL COURT DOCUMENTS | D29: =D16+D25+D27 -> 0 | E29: =E16+E25+E27 -> 0 | F29: =F16+F25+F27 -> 0 | G29: =G16+G25+G27 -> 0 | H29: =SUM(E29:G29) -> 0 | I29: =IF($D29>0,E29/$D29,0) -> 0 | J29: =IF($D29>0,F29/$D29,0) -> 0 | K29: 0 | L29: 0

Sheet MAR
A1: CLERK OF THE COURTS
A2: BREVARD COUNTY, FLORIDA
A3: Document Source Statistics March 2017
A4: Number of Documents Filed by Case Category
A6: Case | B6: Category | D6: Total # of Documents Filed | E6: Documents Filed InCourt | F6: Documents Filed Informix | G6: Documents e-Filed | H6: Total Docs Auto-Docketed | I6: % of TOTAL InCourt | J6: % of TOTAL Informix | K6: % of TOTAL e-Filed | L6: Total % of Documents Auto Docketed
A7: AP | B7: APPEALS | H7: =SUM(G7) -> 0 | I7: =IF($D7>0,E7/$D7,0) -> 0 | J7: =IF($D7>0,F7/$D7,0) -> 0 | K7: =IF($D7>0,G7/$D7,0) -> 0 | L7: =SUM(I7:K7) -> 0
A8: CA | B8: CIRCUIT CIVIL | H8: 0 | I8: =IF($D8>0,E8/$D8,0) -> 0 | J8: 0 | K8: 0 | L8: =SUM(I8:K8) -> 0
A9: SC | B9: COUNTY CIVIL SMALL CLAIMS | H9: 0 | I9: 0 | J9: 0 | K9: 0 | L9: 0
A10: DR | B10: CIRCUIT CIVIL FAMILY | H10: 0 | I10: 0 | J10: 0 | K10: 0 | L10: 0
A11: CP | B11: CIRCUIT CIVIL PROBATE | H11: 0 | I11: 0 | J11: 0 | K11: 0 | L11: 0
A12: GA | B12: CIRCUIT CIVIL GUARDIANSHIP | H12: 0 | I12: 0 | J12: 0 | K12: 0 | L12: 0
A13: MH | B13: CIRCUIT CIVIL MENTAL HEALTH | H13: 0 | I13: 0 | J13: 0 | K13: 0 | L13: 0
A14: CC | B14: COUNTY CIVIL | H14: 0 | I14: 0 | J14: 0 | K14: 0 | L14: 0
A15: DP | B15: CIRCUIT JUVENILE DEPENDENCY | H15: 0 | I15: 0 | J15: 0 | K15: 0 | L15: 0
A16: TOTAL OF CIVIL DOCUMENTS | D16: =SUM(D7:D15) -> 0 | E16: =SUM(E7:E15) -> 0 | F16: =SUM(F7:F15) -> 0 | G16: =SUM(G7:G15) -> 0 | H16: 0 | I16: =IF($D16>0,E16/$D16,0) -> 0 | J16: =IF($D16>0,F16/$D16,0) -> 0 | K16: =IF($D16>0,G16/$D16,0) -> 0 | L16: 0
A17: .
A18: CJ | B18: CIRCUIT JUVENILE DELINQUENCY | H18: 0 | I18: =IF($D18>0,E18/$D18,0) -> 0 | J18: 0 | K18: 0 | L18: 0
A19: CF | B19: CIRCUIT CRIMINAL FELONY | H19: 0 | I19: 0 | J19: 0 | K19: 0 | L19: 0
A20: MM | B20: COUNTY CRIMINAL MISDEMEANOR | H20: 0 | I20: 0 | J20: 0 | K20: 0 | L20: 0
A21: CO | B21: COUNTY ORDINANCE | H21: 0 | I21: 0 | J21: 0 | K21: 0 | L21: 0
A22: MO | B22: COUNTY COURT MUNICIPAL ORDINANCE | H22: 0 | I22: 0 | J22: 0 | K22: 0 | L22: 0
A23: IN | B23: COUNTY COURT INFRACTIONS | H23: 0 | I23: 0 | J23: 0 | K23: 0 | L23: 0
A24: CT | B24: COUNTY CRIMINAL TRAFFIC | H24: 0 | I24: 0 | J24: 0 | K24: 0 | L24: 0
A25: TOTAL OF CRIMINAL DOCUMENTS | D25: =SUM(D18:D24) -> 0 | E25: =SUM(E18:E24) -> 0 | F25: =SUM(F18:F24) -> 0 | G25: =SUM(G18:G24) -> 0 | H25: =SUM(E25:G25) -> 0 | I25: =IF($D25>0,E25/$D25,0) -> 0 | J25: 0 | K25: 0 | L25: =IF(G25>0,H25/$D25,0) -> 0
A27: TR | B27: COUNTY CIVIL TRAFFIC | H27: =SUM(E27:G27) -> 0 | I27: =IF($D27>0,E27/$D27,0) -> 0 | J27: =IF($D27>0,F27/$D27,0) -> 0 | K27: 0 | L27: 0
A29: TOTAL ALL COURT DOCUMENTS | D29: =D16+D25+D27 -> 0 | E29: =E16+E25+E27 -> 0 | F29: =F16+F25+F27 -> 0 | G29: =G16+G25+G27 -> 0 | H29: =SUM(E29:G29) -> 0 | I29: =IF($D29>0,E29/$D29,0) -> 0 | J29: =IF($D29>0,F29/$D29,0) -> 0 | K29: 0 | L29: 0

Sheet APR
A1: CLERK OF THE COURTS
A2: BREVARD COUNTY, FLORIDA
A3: Document Source Statistics April 2017
A4: Number of Documents Filed by Case Category
A6: Case | B6: Category | D6: Total # of Documents Filed | E6: Documents Filed InCourt | F6: Documents Filed Informix | G6: Documents e-Filed | H6: Total Docs Auto-Docketed | I6: % of TOTAL InCourt | J6: % of TOTAL Informix | K6: % of TOTAL e-Filed | L6: Total % of Documents Auto Docketed
A7: AP | B7: APPEALS | H7: =SUM(G7) -> 0 | I7: =IF($D7>0,E7/$D7,0) -> 0 | J7: =IF($D7>0,F7/$D7,0) -> 0 | K7: =IF($D7>0,G7/$D7,0) -> 0 | L7: =SUM(I7:K7) -> 0
A8: CA | B8: CIRCUIT CIVIL | H8: 0 | I8: =IF($D8>0,E8/$D8,0) -> 0 | J8: 0 | K8: 0 | L8: =SUM(I8:K8) -> 0
A9: SC | B9: COUNTY CIVIL SMALL CLAIMS | H9: 0 | I9: 0 | J9: 0 | K9: 0 | L9: 0
A10: DR | B10: CIRCUIT CIVIL FAMILY | H10: 0 | I10: 0 | J10: 0 | K10: 0 | L10: 0
A11: CP | B11: CIRCUIT CIVIL PROBATE | H11: 0 | I11: 0 | J11: 0 | K11: 0 | L11: 0
A12: GA | B12: CIRCUIT CIVIL GUARDIANSHIP | H12: 0 | I12: 0 | J12: 0 | K12: 0 | L12: 0
A13: MH | B13: CIRCUIT CIVIL MENTAL HEALTH | H13: 0 | I13: 0 | J13: 0 | K13: 0 | L13: 0
A14: CC | B14: COUNTY CIVIL | H14: 0 | I14: 0 | J14: 0 | K14: 0 | L14: 0
A15: DP | B15: CIRCUIT JUVENILE DEPENDENCY | H15: 0 | I15: 0 | J15: 0 | K15: 0 | L15: 0
A16: TOTAL OF CIVIL DOCUMENTS | D16: =SUM(D7:D15) -> 0 | E16: =SUM(E7:E15) -> 0 | F16: =SUM(F7:F15) -> 0 | G16: =SUM(G7:G15) -> 0 | H16: 0 | I16: =IF($D16>0,E16/$D16,0) -> 0 | J16: =IF($D16>0,F16/$D16,0) -> 0 | K16: =IF($D16>0,G16/$D16,0) -> 0 | L16: 0
A17: .
A18: CJ | B18: CIRCUIT JUVENILE DELINQUENCY | H18: 0 | I18: =IF($D18>0,E18/$D18,0) -> 0 | J18: 0 | K18: 0 | L18: 0
A19: CF | B19: CIRCUIT CRIMINAL FELONY | H19: 0 | I19: 0 | J19: 0 | K19: 0 | L19: 0
A20: MM | B20: COUNTY CRIMINAL MISDEMEANOR | H20: 0 | I20: 0 | J20: 0 | K20: 0 | L20: 0
A21: CO | B21: COUNTY ORDINANCE | H21: 0 | I21: 0 | J21: 0 | K21: 0 | L21: 0
A22: MO | B22: COUNTY COURT MUNICIPAL ORDINANCE | H22: 0 | I22: 0 | J22: 0 | K22: 0 | L22: 0
A23: IN | B23: COUNTY COURT INFRACTIONS | H23: 0 | I23: 0 | J23: 0 | K23: 0 | L23: 0
A24: CT | B24: COUNTY CRIMINAL TRAFFIC | H24: 0 | I24: 0 | J24: 0 | K24: 0 | L24: 0
A25: TOTAL OF CRIMINAL DOCUMENTS | D25: =SUM(D18:D24) -> 0 | E25: =SUM(E18:E24) -> 0 | F25: =SUM(F18:F24) -> 0 | G25: =SUM(G18:G24) -> 0 | H25: =SUM(E25:G25) -> 0 | I25: =IF($D25>0,E25/$D25,0) -> 0 | J25: 0 | K25: 0 | L25: =IF(G25>0,H25/$D25,0) -> 0
A27: TR | B27: COUNTY CIVIL TRAFFIC | H27: =SUM(E27:G27) -> 0 | I27: =IF($D27>0,E27/$D27,0) -> 0 | J27: =IF($D27>0,F27/$D27,0) -> 0 | K27: 0 | L27: 0
A29: TOTAL ALL COURT DOCUMENTS | D29: =D16+D25+D27 -> 0 | E29: =E16+E25+E27 -> 0 | F29: =F16+F25+F27 -> 0 | G29: =G16+G25+G27 -> 0 | H29: =SUM(E29:G29) -> 0 | I29: =IF($D29>0,E29/$D29,0) -> 0 | J29: =IF($D29>0,F29/$D29,0) -> 0 | K29: 0 | L29: 0

Sheet MAY
A1: CLERK OF THE COURTS
A2: BREVARD COUNTY, FLORIDA
A3: Document Source Statistics May 2017
A4: Number of Documents Filed by Case Category
A6: Case | B6: Category | D6: Total # of Documents Filed | E6: Documents Filed InCourt | F6: Documents Filed Informix | G6: Documents e-Filed | H6: Total Docs Auto-Docketed | I6: % of TOTAL InCourt | J6: % of TOTAL Informix | K6: % of TOTAL e-Filed | L6: Total % of Documents Auto Docketed
A7: AP | B7: APPEALS | H7: =SUM(G7) -> 0 | I7: =IF($D7>0,E7/$D7,0) -> 0 | J7: =IF($D7>0,F7/$D7,0) -> 0 | K7: =IF($D7>0,G7/$D7,0) -> 0 | L7: =SUM(I7:K7) -> 0
A8: CA | B8: CIRCUIT CIVIL | H8: 0 | I8: =IF($D8>0,E8/$D8,0) -> 0 | J8: 0 | K8: 0 | L8: =SUM(I8:K8) -> 0
A9: SC | B9: COUNTY CIVIL SMALL CLAIMS | H9: 0 | I9: 0 | J9: 0 | K9: 0 | L9: 0
A10: DR | B10: CIRCUIT CIVIL FAMILY | H10: 0 | I10: 0 | J10: 0 | K10: 0 | L10: 0
A11: CP | B11: CIRCUIT CIVIL PROBATE | H11: 0 | I11: 0 | J11: 0 | K11: 0 | L11: 0
A12: GA | B12: CIRCUIT CIVIL GUARDIANSHIP | H12: 0 | I12: 0 | J12: 0 | K12: 0 | L12: 0
A13: MH | B13: CIRCUIT CIVIL MENTAL HEALTH | H13: 0 | I13: 0 | J13: 0 | K13: 0 | L13: 0
A14: CC | B14: COUNTY CIVIL | H14: 0 | I14: 0 | J14: 0 | K14: 0 | L14: 0
A15: DP | B15: CIRCUIT JUVENILE DEPENDENCY | H15: 0 | I15: 0 | J15: 0 | K15: 0 | L15: 0
A16: TOTAL OF CIVIL DOCUMENTS | D16: =SUM(D7:D15) -> 0 | E16: =SUM(E7:E15) -> 0 | F16: =SUM(F7:F15) -> 0 | G16: =SUM(G7:G15) -> 0 | H16: 0 | I16: =IF($D16>0,E16/$D16,0) -> 0 | J16: =IF($D16>0,F16/$D16,0) -> 0 | K16: =IF($D16>0,G16/$D16,0) -> 0 | L16: 0
A17: .
A18: CJ | B18: CIRCUIT JUVENILE DELINQUENCY | H18: 0 | I18: =IF($D18>0,E18/$D18,0) -> 0 | J18: 0 | K18: 0 | L18: 0
A19: CF | B19: CIRCUIT CRIMINAL FELONY | H19: 0 | I19: 0 | J19: 0 | K19: 0 | L19: 0
A20: MM | B20: COUNTY CRIMINAL MISDEMEANOR | H20: 0 | I20: 0 | J20: 0 | K20: 0 | L20: 0
A21: CO | B21: COUNTY ORDINANCE | H21: 0 | I21: 0 | J21: 0 | K21: 0 | L21: 0
A22: MO | B22: COUNTY COURT MUNICIPAL ORDINANCE | H22: 0 | I22: 0 | J22: 0 | K22: 0 | L22: 0
A23: IN | B23: COUNTY COURT INFRACTIONS | H23: 0 | I23: 0 | J23: 0 | K23: 0 | L23: 0
A24: CT | B24: COUNTY CRIMINAL TRAFFIC | H24: 0 | I24: 0 | J24: 0 | K24: 0 | L24: 0
A25: TOTAL OF CRIMINAL DOCUMENTS | D25: =SUM(D18:D24) -> 0 | E25: =SUM(E18:E24) -> 0 | F25: =SUM(F18:F24) -> 0 | G25: =SUM(G18:G24) -> 0 | H25: =SUM(E25:G25) -> 0 | I25: =IF($D25>0,E25/$D25,0) -> 0 | J25: 0 | K25: 0 | L25: =IF(G25>0,H25/$D25,0) -> 0
A27: TR | B27: COUNTY CIVIL TRAFFIC | H27: =SUM(E27:G27) -> 0 | I27: =IF($D27>0,E27/$D27,0) -> 0 | J27: =IF($D27>0,F27/$D27,0) -> 0 | K27: 0 | L27: 0
A29: TOTAL ALL COURT DOCUMENTS | D29: =D16+D25+D27 -> 0 | E29: =E16+E25+E27 -> 0 | F29: =F16+F25+F27 -> 0 | G29: =G16+G25+G27 -> 0 | H29: =SUM(E29:G29) -> 0 | I29: =IF($D29>0,E29/$D29,0) -> 0 | J29: =IF($D29>0,F29/$D29,0) -> 0 | K29: 0 | L29: 0

Sheet JUN
A1: CLERK OF THE COURTS
A2: BREVARD COUNTY, FLORIDA
A3: Document Source Statistics June 2017
A4: Number of Documents Filed by Case Category
A6: Case | B6: Category | D6: Total # of Documents Filed | E6: Documents Filed InCourt | F6: Documents Filed Informix | G6: Documents e-Filed | H6: Total Docs Auto-Docketed | I6: % of TOTAL InCourt | J6: % of TOTAL Informix | K6: % of TOTAL e-Filed | L6: Total % of Documents Auto Docketed
A7: AP | B7: APPEALS | H7: =SUM(G7) -> 0 | I7: =IF($D7>0,E7/$D7,0) -> 0 | J7: =IF($D7>0,F7/$D7,0) -> 0 | K7: =IF($D7>0,G7/$D7,0) -> 0 | L7: =SUM(I7:K7) -> 0
A8: CA | B8: CIRCUIT CIVIL | H8: 0 | I8: =IF($D8>0,E8/$D8,0) -> 0 | J8: 0 | K8: 0 | L8: =SUM(I8:K8) -> 0
A9: SC | B9: COUNTY CIVIL SMALL CLAIMS | H9: 0 | I9: 0 | J9: 0 | K9: 0 | L9: 0
A10: DR | B10: CIRCUIT CIVIL FAMILY | H10: 0 | I10: 0 | J10: 0 | K10: 0 | L10: 0
A11: CP | B11: CIRCUIT CIVIL PROBATE | H11: 0 | I11: 0 | J11: 0 | K11: 0 | L11: 0
A12: GA | B12: CIRCUIT CIVIL GUARDIANSHIP | H12: 0 | I12: 0 | J12: 0 | K12: 0 | L12: 0
A13: MH | B13: CIRCUIT CIVIL MENTAL HEALTH | H13: 0 | I13: 0 | J13: 0 | K13: 0 | L13: 0
A14: CC | B14: COUNTY CIVIL | H14: 0 | I14: 0 | J14: 0 | K14: 0 | L14: 0
A15: DP | B15: CIRCUIT JUVENILE DEPENDENCY | H15: 0 | I15: 0 | J15: 0 | K15: 0 | L15: 0
A16: TOTAL OF CIVIL DOCUMENTS | D16: =SUM(D7:D15) -> 0 | E16: =SUM(E7:E15) -> 0 | F16: =SUM(F7:F15) -> 0 | G16: =SUM(G7:G15) -> 0 | H16: 0 | I16: =IF($D16>0,E16/$D16,0) -> 0 | J16: =IF($D16>0,F16/$D16,0) -> 0 | K16: =IF($D16>0,G16/$D16,0) -> 0 | L16: 0
A17: .
A18: CJ | B18: CIRCUIT JUVENILE DELINQUENCY | H18: 0 | I18: =IF($D18>0,E18/$D18,0) -> 0 | J18: 0 | K18: 0 | L18: 0
A19: CF | B19: CIRCUIT CRIMINAL FELONY | H19: 0 | I19: 0 | J19: 0 | K19: 0 | L19: 0
A20: MM | B20: COUNTY CRIMINAL MISDEMEANOR | H20: 0 | I20: 0 | J20: 0 | K20: 0 | L20: 0
A21: CO | B21: COUNTY ORDINANCE | H21: 0 | I21: 0 | J21: 0 | K21: 0 | L21: 0
A22: MO | B22: COUNTY COURT MUNICIPAL ORDINANCE | H22: 0 | I22: 0 | J22: 0 | K22: 0 | L22: 0
A23: IN | B23: COUNTY COURT INFRACTIONS | H23: 0 | I23: 0 | J23: 0 | K23: 0 | L23: 0
A24: CT | B24: COUNTY CRIMINAL TRAFFIC | H24: 0 | I24: 0 | J24: 0 | K24: 0 | L24: 0
A25: TOTAL OF CRIMINAL DOCUMENTS | D25: =SUM(D18:D24) -> 0 | E25: =SUM(E18:E24) -> 0 | F25: =SUM(F18:F24) -> 0 | G25: =SUM(G18:G24) -> 0 | H25: =SUM(E25:G25) -> 0 | I25: =IF($D25>0,E25/$D25,0) -> 0 | J25: 0 | K25: 0 | L25: =IF(G25>0,H25/$D25,0) -> 0
A27: TR | B27: COUNTY CIVIL TRAFFIC | H27: =SUM(E27:G27) -> 0 | I27: =IF($D27>0,E27/$D27,0) -> 0 | J27: =IF($D27>0,F27/$D27,0) -> 0 | K27: 0 | L27: 0
A29: TOTAL ALL COURT DOCUMENTS | D29: =D16+D25+D27 -> 0 | E29: =E16+E25+E27 -> 0 | F29: =F16+F25+F27 -> 0 | G29: =G16+G25+G27 -> 0 | H29: =SUM(E29:G29) -> 0 | I29: =IF($D29>0,E29/$D29,0) -> 0 | J29: =IF($D29>0,F29/$D29,0) -> 0 | K29: 0 | L29: 0

Sheet JUL
A1: CLERK OF THE COURTS
A2: BREVARD COUNTY, FLORIDA
A3: Document Source Statistics July 2017
A4: Number of Documents Filed by Case Category
A6: Case | B6: Category | D6: Total # of Documents Filed | E6: Documents Filed InCourt | F6: Documents Filed Informix | G6: Documents e-Filed | H6: Total Docs Auto-Docketed | I6: % of TOTAL InCourt | J6: % of TOTAL Informix | K6: % of TOTAL e-Filed | L6: Total % of Documents Auto Docketed
A7: AP | B7: APPEALS | H7: =SUM(G7) -> 0 | I7: =IF($D7>0,E7/$D7,0) -> 0 | J7: =IF($D7>0,F7/$D7,0) -> 0 | K7: =IF($D7>0,G7/$D7,0) -> 0 | L7: =SUM(I7:K7) -> 0
A8: CA | B8: CIRCUIT CIVIL | H8: 0 | I8: =IF($D8>0,E8/$D8,0) -> 0 | J8: 0 | K8: 0 | L8: =SUM(I8:K8) -> 0
A9: SC | B9: COUNTY CIVIL SMALL CLAIMS | H9: 0 | I9: 0 | J9: 0 | K9: 0 | L9: 0
A10: DR | B10: CIRCUIT CIVIL FAMILY | H10: 0 | I10: 0 | J10: 0 | K10: 0 | L10: 0
A11: CP | B11: CIRCUIT CIVIL PROBATE | H11: 0 | I11: 0 | J11: 0 | K11: 0 | L11: 0
A12: GA | B12: CIRCUIT CIVIL GUARDIANSHIP | H12: 0 | I12: 0 | J12: 0 | K12: 0 | L12: 0
A13: MH | B13: CIRCUIT CIVIL MENTAL HEALTH | H13: 0 | I13: 0 | J13: 0 | K13: 0 | L13: 0
A14: CC | B14: COUNTY CIVIL | H14: 0 | I14: 0 | J14: 0 | K14: 0 | L14: 0
A15: DP | B15: CIRCUIT JUVENILE DEPENDENCY | H15: 0 | I15: 0 | J15: 0 | K15: 0 | L15: 0
A16: TOTAL OF CIVIL DOCUMENTS | D16: =SUM(D7:D15) -> 0 | E16: =SUM(E7:E15) -> 0 | F16: =SUM(F7:F15) -> 0 | G16: =SUM(G7:G15) -> 0 | H16: 0 | I16: =IF($D16>0,E16/$D16,0) -> 0 | J16: =IF($D16>0,F16/$D16,0) -> 0 | K16: =IF($D16>0,G16/$D16,0) -> 0 | L16: 0
A17: .
A18: CJ | B18: CIRCUIT JUVENILE DELINQUENCY | H18: 0 | I18: =IF($D18>0,E18/$D18,0) -> 0 | J18: 0 | K18: 0 | L18: 0
A19: CF | B19: CIRCUIT CRIMINAL FELONY | H19: 0 | I19: 0 | J19: 0 | K19: 0 | L19: 0
A20: MM | B20: COUNTY CRIMINAL MISDEMEANOR | H20: 0 | I20: 0 | J20: 0 | K20: 0 | L20: 0
A21: CO | B21: COUNTY ORDINANCE | H21: 0 | I21: 0 | J21: 0 | K21: 0 | L21: 0
A22: MO | B22: COUNTY COURT MUNICIPAL ORDINANCE | H22: 0 | I22: 0 | J22: 0 | K22: 0 | L22: 0
A23: IN | B23: COUNTY COURT INFRACTIONS | H23: 0 | I23: 0 | J23: 0 | K23: 0 | L23: 0
A24: CT | B24: COUNTY CRIMINAL TRAFFIC | H24: 0 | I24: 0 | J24: 0 | K24: 0 | L24: 0
A25: TOTAL OF CRIMINAL DOCUMENTS | D25: =SUM(D18:D24) -> 0 | E25: =SUM(E18:E24) -> 0 | F25: =SUM(F18:F24) -> 0 | G25: =SUM(G18:G24) -> 0 | H25: =SUM(E25:G25) -> 0 | I25: =IF($D25>0,E25/$D25,0) -> 0 | J25: 0 | K25: 0 | L25: =IF(G25>0,H25/$D25,0) -> 0
A27: TR | B27: COUNTY CIVIL TRAFFIC | H27: =SUM(E27:G27) -> 0 | I27: =IF($D27>0,E27/$D27,0) -> 0 | J27: =IF($D27>0,F27/$D27,0) -> 0 | K27: 0 | L27: 0
A29: TOTAL ALL COURT DOCUMENTS | D29: =D16+D25+D27 -> 0 | E29: =E16+E25+E27 -> 0 | F29: =F16+F25+F27 -> 0 | G29: =G16+G25+G27 -> 0 | H29: =SUM(E29:G29) -> 0 | I29: =IF($D29>0,E29/$D29,0) -> 0 | J29: =IF($D29>0,F29/$D29,0) -> 0 | K29: 0 | L29: 0

Sheet AUG
A1: CLERK OF THE COURTS
A2: BREVARD COUNTY, FLORIDA
A3: Document Source Statistics August 2017
A4: Number of Documents Filed by Case Category
A6: Case | B6: Category | D6: Total # of Documents Filed | E6: Documents Filed InCourt | F6: Documents Filed Informix | G6: Documents e-Filed | H6: Total Docs Auto-Docketed | I6: % of TOTAL InCourt | J6: % of TOTAL Informix | K6: % of TOTAL e-Filed | L6: Total % of Documents Auto Docketed
A7: AP | B7: APPEALS | H7: =SUM(G7) -> 0 | I7: =IF($D7>0,E7/$D7,0) -> 0 | J7: =IF($D7>0,F7/$D7,0) -> 0 | K7: =IF($D7>0,G7/$D7,0) -> 0 | L7: =SUM(I7:K7) -> 0
A8: CA | B8: CIRCUIT CIVIL | H8: 0 | I8: =IF($D8>0,E8/$D8,0) -> 0 | J8: 0 | K8: 0 | L8: =SUM(I8:K8) -> 0
A9: SC | B9: COUNTY CIVIL SMALL CLAIMS | H9: 0 | I9: 0 | J9: 0 | K9: 0 | L9: 0
A10: DR | B10: CIRCUIT CIVIL FAMILY | H10: 0 | I10: 0 | J10: 0 | K10: 0 | L10: 0
A11: CP | B11: CIRCUIT CIVIL PROBATE | H11: 0 | I11: 0 | J11: 0 | K11: 0 | L11: 0
A12: GA | B12: CIRCUIT CIVIL GUARDIANSHIP | H12: 0 | I12: 0 | J12: 0 | K12: 0 | L12: 0
A13: MH | B13: CIRCUIT CIVIL MENTAL HEALTH | H13: 0 | I13: 0 | J13: 0 | K13: 0 | L13: 0
A14: CC | B14: COUNTY CIVIL | H14: 0 | I14: 0 | J14: 0 | K14: 0 | L14: 0
A15: DP | B15: CIRCUIT JUVENILE DEPENDENCY | H15: 0 | I15: 0 | J15: 0 | K15: 0 | L15: 0
A16: TOTAL OF CIVIL DOCUMENTS | D16: =SUM(D7:D15) -> 0 | E16: =SUM(E7:E15) -> 0 | F16: =SUM(F7:F15) -> 0 | G16: =SUM(G7:G15) -> 0 | H16: 0 | I16: =IF($D16>0,E16/$D16,0) -> 0 | J16: =IF($D16>0,F16/$D16,0) -> 0 | K16: =IF($D16>0,G16/$D16,0) -> 0 | L16: 0
A17: .
A18: CJ | B18: CIRCUIT JUVENILE DELINQUENCY | H18: 0 | I18: =IF($D18>0,E18/$D18,0) -> 0 | J18: 0 | K18: 0 | L18: 0
A19: CF | B19: CIRCUIT CRIMINAL FELONY | H19: 0 | I19: 0 | J19: 0 | K19: 0 | L19: 0
A20: MM | B20: COUNTY CRIMINAL MISDEMEANOR | H20: 0 | I20: 0 | J20: 0 | K20: 0 | L20: 0
A21: CO | B21: COUNTY ORDINANCE | H21: 0 | I21: 0 | J21: 0 | K21: 0 | L21: 0
A22: MO | B22: COUNTY COURT MUNICIPAL ORDINANCE | H22: 0 | I22: 0 | J22: 0 | K22: 0 | L22: 0
A23: IN | B23: COUNTY COURT INFRACTIONS | H23: 0 | I23: 0 | J23: 0 | K23: 0 | L23: 0
A24: CT | B24: COUNTY CRIMINAL TRAFFIC | H24: 0 | I24: 0 | J24: 0 | K24: 0 | L24: 0
A25: TOTAL OF CRIMINAL DOCUMENTS | D25: =SUM(D18:D24) -> 0 | E25: =SUM(E18:E24) -> 0 | F25: =SUM(F18:F24) -> 0 | G25: =SUM(G18:G24) -> 0 | H25: =SUM(E25:G25) -> 0 | I25: =IF($D25>0,E25/$D25,0) -> 0 | J25: 0 | K25: 0 | L25: =IF(G25>0,H25/$D25,0) -> 0
A27: TR | B27: COUNTY CIVIL TRAFFIC | H27: =SUM(E27:G27) -> 0 | I27: =IF($D27>0,E27/$D27,0) -> 0 | J27: =IF($D27>0,F27/$D27,0) -> 0 | K27: 0 | L27: 0
A29: TOTAL ALL COURT DOCUMENTS | D29: =D16+D25+D27 -> 0 | E29: =E16+E25+E27 -> 0 | F29: =F16+F25+F27 -> 0 | G29: =G16+G25+G27 -> 0 | H29: =SUM(E29:G29) -> 0 | I29: =IF($D29>0,E29/$D29,0) -> 0 | J29: =IF($D29>0,F29/$D29,0) -> 0 | K29: 0 | L29: 0

Sheet SEP
A1: CLERK OF THE COURTS
A2: BREVARD COUNTY, FLORIDA
A3: Document Source Statistics September 2017
A4: Number of Documents Filed by Case Category
A6: Case | B6: Category | D6: Total # of Documents Filed | E6: Documents Filed InCourt | F6: Documents Filed Informix | G6: Documents e-Filed | H6: Total Docs Auto-Docketed | I6: % of TOTAL InCourt | J6: % of TOTAL Informix | K6: % of TOTAL e-Filed | L6: Total % of Documents Auto Docketed
A7: AP | B7: APPEALS | H7: =SUM(G7) -> 0 | I7: =IF($D7>0,E7/$D7,0) -> 0 | J7: =IF($D7>0,F7/$D7,0) -> 0 | K7: =IF($D7>0,G7/$D7,0) -> 0 | L7: =SUM(I7:K7) -> 0
A8: CA | B8: CIRCUIT CIVIL | H8: 0 | I8: =IF($D8>0,E8/$D8,0) -> 0 | J8: 0 | K8: 0 | L8: =SUM(I8:K8) -> 0
A9: SC | B9: COUNTY CIVIL SMALL CLAIMS | H9: 0 | I9: 0 | J9: 0 | K9: 0 | L9: 0
A10: DR | B10: CIRCUIT CIVIL FAMILY | H10: 0 | I10: 0 | J10: 0 | K10: 0 | L10: 0
A11: CP | B11: CIRCUIT CIVIL PROBATE | H11: 0 | I11: 0 | J11: 0 | K11: 0 | L11: 0
A12: GA | B12: CIRCUIT CIVIL GUARDIANSHIP | H12: 0 | I12: 0 | J12: 0 | K12: 0 | L12: 0
A13: MH | B13: CIRCUIT CIVIL MENTAL HEALTH | H13: 0 | I13: 0 | J13: 0 | K13: 0 | L13: 0
A14: CC | B14: COUNTY CIVIL | H14: 0 | I14: 0 | J14: 0 | K14: 0 | L14: 0
A15: DP | B15: CIRCUIT JUVENILE DEPENDENCY | H15: 0 | I15: 0 | J15: 0 | K15: 0 | L15: 0
A16: TOTAL OF CIVIL DOCUMENTS | D16: =SUM(D7:D15) -> 0 | E16: =SUM(E7:E15) -> 0 | F16: =SUM(F7:F15) -> 0 | G16: =SUM(G7:G15) -> 0 | H16: 0 | I16: =IF($D16>0,E16/$D16,0) -> 0 | J16: =IF($D16>0,F16/$D16,0) -> 0 | K16: =IF($D16>0,G16/$D16,0) -> 0 | L16: 0
A17: .
A18: CJ | B18: CIRCUIT JUVENILE DELINQUENCY | H18: 0 | I18: =IF($D18>0,E18/$D18,0) -> 0 | J18: 0 | K18: 0 | L18: 0
A19: CF | B19: CIRCUIT CRIMINAL FELONY | H19: 0 | I19: 0 | J19: 0 | K19: 0 | L19: 0
A20: MM | B20: COUNTY CRIMINAL MISDEMEANOR | H20: 0 | I20: 0 | J20: 0 | K20: 0 | L20: 0
A21: CO | B21: COUNTY ORDINANCE | H21: 0 | I21: 0 | J21: 0 | K21: 0 | L21: 0
A22: MO | B22: COUNTY COURT MUNICIPAL ORDINANCE | H22: 0 | I22: 0 | J22: 0 | K22: 0 | L22: 0
A23: IN | B23: COUNTY COURT INFRACTIONS | H23: 0 | I23: 0 | J23: 0 | K23: 0 | L23: 0
A24: CT | B24: COUNTY CRIMINAL TRAFFIC | H24: 0 | I24: 0 | J24: 0 | K24: 0 | L24: 0
A25: TOTAL OF CRIMINAL DOCUMENTS | D25: =SUM(D18:D24) -> 0 | E25: =SUM(E18:E24) -> 0 | F25: =SUM(F18:F24) -> 0 | G25: =SUM(G18:G24) -> 0 | H25: =SUM(E25:G25) -> 0 | I25: =IF($D25>0,E25/$D25,0) -> 0 | J25: 0 | K25: 0 | L25: =IF(G25>0,H25/$D25,0) -> 0
A27: TR | B27: COUNTY CIVIL TRAFFIC | H27: =SUM(E27:G27) -> 0 | I27: =IF($D27>0,E27/$D27,0) -> 0 | J27: =IF($D27>0,F27/$D27,0) -> 0 | K27: 0 | L27: 0
A29: TOTAL ALL COURT DOCUMENTS | D29: =D16+D25+D27 -> 0 | E29: =E16+E25+E27 -> 0 | F29: =F16+F25+F27 -> 0 | G29: =G16+G25+G27 -> 0 | H29: =SUM(E29:G29) -> 0 | I29: =IF($D29>0,E29/$D29,0) -> 0 | J29: =IF($D29>0,F29/$D29,0) -> 0 | K29: 0 | L29: 0

Sheet OCT
A1: CLERK OF THE COURTS
A2: BREVARD COUNTY, FLORIDA
A3: Document Source Statistics October 2017
A4: Number of Documents Filed by Case Category
A6: Case | B6: Category | D6: Total # of Documents Filed | E6: Documents Filed InCourt | F6: Documents Filed Informix | G6: Documents e-Filed | H6: Total Docs Auto-Docketed | I6: % of TOTAL InCourt | J6: % of TOTAL Informix | K6: % of TOTAL e-Filed | L6: Total % of Documents Auto Docketed
A7: AP | B7: APPEALS | H7: =SUM(G7) -> 0 | I7: =IF($D7>0,E7/$D7,0) -> 0 | J7: =IF($D7>0,F7/$D7,0) -> 0 | K7: =IF($D7>0,G7/$D7,0) -> 0 | L7: =SUM(I7:K7) -> 0
A8: CA | B8: CIRCUIT CIVIL | H8: 0 | I8: =IF($D8>0,E8/$D8,0) -> 0 | J8: 0 | K8: 0 | L8: =SUM(I8:K8) -> 0
A9: SC | B9: COUNTY CIVIL SMALL CLAIMS | H9: 0 | I9: 0 | J9: 0 | K9: 0 | L9: 0
A10: DR | B10: CIRCUIT CIVIL FAMILY | H10: 0 | I10: 0 | J10: 0 | K10: 0 | L10: 0
A11: CP | B11: CIRCUIT CIVIL PROBATE | H11: 0 | I11: 0 | J11: 0 | K11: 0 | L11: 0
A12: GA | B12: CIRCUIT CIVIL GUARDIANSHIP | H12: 0 | I12: 0 | J12: 0 | K12: 0 | L12: 0
A13: MH | B13: CIRCUIT CIVIL MENTAL HEALTH | H13: 0 | I13: 0 | J13: 0 | K13: 0 | L13: 0
A14: CC | B14: COUNTY CIVIL | H14: 0 | I14: 0 | J14: 0 | K14: 0 | L14: 0
A15: DP | B15: CIRCUIT JUVENILE DEPENDENCY | H15: 0 | I15: 0 | J15: 0 | K15: 0 | L15: 0
A16: TOTAL OF CIVIL DOCUMENTS | D16: =SUM(D7:D15) -> 0 | E16: =SUM(E7:E15) -> 0 | F16: =SUM(F7:F15) -> 0 | G16: =SUM(G7:G15) -> 0 | H16: 0 | I16: =IF($D16>0,E16/$D16,0) -> 0 | J16: =IF($D16>0,F16/$D16,0) -> 0 | K16: =IF($D16>0,G16/$D16,0) -> 0 | L16: 0
A17: .
A18: CJ | B18: CIRCUIT JUVENILE DELINQUENCY | H18: 0 | I18: =IF($D18>0,E18/$D18,0) -> 0 | J18: 0 | K18: 0 | L18: 0
A19: CF | B19: CIRCUIT CRIMINAL FELONY | H19: 0 | I19: 0 | J19: 0 | K19: 0 | L19: 0
A20: MM | B20: COUNTY CRIMINAL MISDEMEANOR | H20: 0 | I20: 0 | J20: 0 | K20: 0 | L20: 0
A21: CO | B21: COUNTY ORDINANCE | H21: 0 | I21: 0 | J21: 0 | K21: 0 | L21: 0
A22: MO | B22: COUNTY COURT MUNICIPAL ORDINANCE | H22: 0 | I22: 0 | J22: 0 | K22: 0 | L22: 0
A23: IN | B23: COUNTY COURT INFRACTIONS | H23: 0 | I23: 0 | J23: 0 | K23: 0 | L23: 0
A24: CT | B24: COUNTY CRIMINAL TRAFFIC | H24: 0 | I24: 0 | J24: 0 | K24: 0 | L24: 0
A25: TOTAL OF CRIMINAL DOCUMENTS | D25: =SUM(D18:D24) -> 0 | E25: =SUM(E18:E24) -> 0 | F25: =SUM(F18:F24) -> 0 | G25: =SUM(G18:G24) -> 0 | H25: =SUM(E25:G25) -> 0 | I25: =IF($D25>0,E25/$D25,0) -> 0 | J25: 0 | K25: 0 | L25: =IF(G25>0,H25/$D25,0) -> 0
A27: TR | B27: COUNTY CIVIL TRAFFIC | H27: =SUM(E27:G27) -> 0 | I27: =IF($D27>0,E27/$D27,0) -> 0 | J27: =IF($D27>0,F27/$D27,0) -> 0 | K27: 0 | L27: 0
A29: TOTAL ALL COURT DOCUMENTS | D29: =D16+D25+D27 -> 0 | E29: =E16+E25+E27 -> 0 | F29: =F16+F25+F27 -> 0 | G29: =G16+G25+G27 -> 0 | H29: =SUM(E29:G29) -> 0 | I29: =IF($D29>0,E29/$D29,0) -> 0 | J29: =IF($D29>0,F29/$D29,0) -> 0 | K29: 0 | L29: 0

Sheet NOV
A1: CLERK OF THE COURTS
A2: BREVARD COUNTY, FLORIDA
A3: Document Source Statistics November 2017
A4: Number of Documents Filed by Case Category
A6: Case | B6: Category | D6: Total # of Documents Filed | E6: Documents Filed InCourt | F6: Documents Filed Informix | G6: Documents e-Filed | H6: Total Docs Auto-Docketed | I6: % of TOTAL InCourt | J6: % of TOTAL Informix | K6: % of TOTAL e-Filed | L6: Total % of Documents Auto Docketed
A7: AP | B7: APPEALS | H7: =SUM(G7) -> 0 | I7: =IF($D7>0,E7/$D7,0) -> 0 | J7: =IF($D7>0,F7/$D7,0) -> 0 | K7: =IF($D7>0,G7/$D7,0) -> 0 | L7: =SUM(I7:K7) -> 0
A8: CA | B8: CIRCUIT CIVIL | H8: 0 | I8: =IF($D8>0,E8/$D8,0) -> 0 | J8: 0 | K8: 0 | L8: =SUM(I8:K8) -> 0
A9: SC | B9: COUNTY CIVIL SMALL CLAIMS | H9: 0 | I9: 0 | J9: 0 | K9: 0 | L9: 0
A10: DR | B10: CIRCUIT CIVIL FAMILY | H10: 0 | I10: 0 | J10: 0 | K10: 0 | L10: 0
A11: CP | B11: CIRCUIT CIVIL PROBATE | H11: 0 | I11: 0 | J11: 0 | K11: 0 | L11: 0
A12: GA | B12: CIRCUIT CIVIL GUARDIANSHIP | H12: 0 | I12: 0 | J12: 0 | K12: 0 | L12: 0
A13: MH | B13: CIRCUIT CIVIL MENTAL HEALTH | H13: 0 | I13: 0 | J13: 0 | K13: 0 | L13: 0
A14: CC | B14: COUNTY CIVIL | H14: 0 | I14: 0 | J14: 0 | K14: 0 | L14: 0
A15: DP | B15: CIRCUIT JUVENILE DEPENDENCY | H15: 0 | I15: 0 | J15: 0 | K15: 0 | L15: 0
A16: TOTAL OF CIVIL DOCUMENTS | D16: =SUM(D7:D15) -> 0 | E16: =SUM(E7:E15) -> 0 | F16: =SUM(F7:F15) -> 0 | G16: =SUM(G7:G15) -> 0 | H16: 0 | I16: =IF($D16>0,E16/$D16,0) -> 0 | J16: =IF($D16>0,F16/$D16,0) -> 0 | K16: =IF($D16>0,G16/$D16,0) -> 0 | L16: 0
A17: .
A18: CJ | B18: CIRCUIT JUVENILE DELINQUENCY | H18: 0 | I18: =IF($D18>0,E18/$D18,0) -> 0 | J18: 0 | K18: 0 | L18: 0
A19: CF | B19: CIRCUIT CRIMINAL FELONY | H19: 0 | I19: 0 | J19: 0 | K19: 0 | L19: 0
A20: MM | B20: COUNTY CRIMINAL MISDEMEANOR | H20: 0 | I20: 0 | J20: 0 | K20: 0 | L20: 0
A21: CO | B21: COUNTY ORDINANCE | H21: 0 | I21: 0 | J21: 0 | K21: 0 | L21: 0
A22: MO | B22: COUNTY COURT MUNICIPAL ORDINANCE | H22: 0 | I22: 0 | J22: 0 | K22: 0 | L22: 0
A23: IN | B23: COUNTY COURT INFRACTIONS | H23: 0 | I23: 0 | J23: 0 | K23: 0 | L23: 0
A24: CT | B24: COUNTY CRIMINAL TRAFFIC | H24: 0 | I24: 0 | J24: 0 | K24: 0 | L24: 0
A25: TOTAL OF CRIMINAL DOCUMENTS | D25: =SUM(D18:D24) -> 0 | E25: =SUM(E18:E24) -> 0 | F25: =SUM(F18:F24) -> 0 | G25: =SUM(G18:G24) -> 0 | H25: =SUM(E25:G25) -> 0 | I25: =IF($D25>0,E25/$D25,0) -> 0 | J25: 0 | K25: 0 | L25: =IF(G25>0,H25/$D25,0) -> 0
A27: TR | B27: COUNTY CIVIL TRAFFIC | H27: =SUM(E27:G27) -> 0 | I27: =IF($D27>0,E27/$D27,0) -> 0 | J27: =IF($D27>0,F27/$D27,0) -> 0 | K27: 0 | L27: 0
A29: TOTAL ALL COURT DOCUMENTS | D29: =D16+D25+D27 -> 0 | E29: =E16+E25+E27 -> 0 | F29: =F16+F25+F27 -> 0 | G29: =G16+G25+G27 -> 0 | H29: =SUM(E29:G29) -> 0 | I29: =IF($D29>0,E29/$D29,0) -> 0 | J29: =IF($D29>0,F29/$D29,0) -> 0 | K29: 0 | L29: 0

Sheet DEC
A1: CLERK OF THE COURTS
A2: BREVARD COUNTY, FLORIDA
A3: Document Source Statistics December 2017
A4: Number of Documents Filed by Case Category
A6: Case | B6: Category | D6: Total # of Documents Filed | E6: Documents Filed InCourt | F6: Documents Filed Informix | G6: Documents e-Filed | H6: Total Docs Auto-Docketed | I6: % of TOTAL InCourt | J6: % of TOTAL Informix | K6: % of TOTAL e-Filed | L6: Total % of Documents Auto Docketed
A7: AP | B7: APPEALS | H7: =SUM(G7) -> 0 | I7: =IF($D7>0,E7/$D7,0) -> 0 | J7: =IF($D7>0,F7/$D7,0) -> 0 | K7: =IF($D7>0,G7/$D7,0) -> 0 | L7: =SUM(I7:K7) -> 0
A8: CA | B8: CIRCUIT CIVIL | H8: 0 | I8: =IF($D8>0,E8/$D8,0) -> 0 | J8: 0 | K8: 0 | L8: =SUM(I8:K8) -> 0
A9: SC | B9: COUNTY CIVIL SMALL CLAIMS | H9: 0 | I9: 0 | J9: 0 | K9: 0 | L9: 0
A10: DR | B10: CIRCUIT CIVIL FAMILY | H10: 0 | I10: 0 | J10: 0 | K10: 0 | L10: 0
A11: CP | B11: CIRCUIT CIVIL PROBATE | H11: 0 | I11: 0 | J11: 0 | K11: 0 | L11: 0
A12: GA | B12: CIRCUIT CIVIL GUARDIANSHIP | H12: 0 | I12: 0 | J12: 0 | K12: 0 | L12: 0
A13: MH | B13: CIRCUIT CIVIL MENTAL HEALTH | H13: 0 | I13: 0 | J13: 0 | K13: 0 | L13: 0
A14: CC | B14: COUNTY CIVIL | H14: 0 | I14: 0 | J14: 0 | K14: 0 | L14: 0
A15: DP | B15: CIRCUIT JUVENILE DEPENDENCY | H15: 0 | I15: 0 | J15: 0 | K15: 0 | L15: 0
A16: TOTAL OF CIVIL DOCUMENTS | D16: =SUM(D7:D15) -> 0 | E16: =SUM(E7:E15) -> 0 | F16: =SUM(F7:F15) -> 0 | G16: =SUM(G7:G15) -> 0 | H16: 0 | I16: =IF($D16>0,E16/$D16,0) -> 0 | J16: =IF($D16>0,F16/$D16,0) -> 0 | K16: =IF($D16>0,G16/$D16,0) -> 0 | L16: 0
A17: .
A18: CJ | B18: CIRCUIT JUVENILE DELINQUENCY | H18: 0 | I18: =IF($D18>0,E18/$D18,0) -> 0 | J18: 0 | K18: 0 | L18: 0
A19: CF | B19: CIRCUIT CRIMINAL FELONY | H19: 0 | I19: 0 | J19: 0 | K19: 0 | L19: 0
A20: MM | B20: COUNTY CRIMINAL MISDEMEANOR | H20: 0 | I20: 0 | J20: 0 | K20: 0 | L20: 0
A21: CO | B21: COUNTY ORDINANCE | H21: 0 | I21: 0 | J21: 0 | K21: 0 | L21: 0
A22: MO | B22: COUNTY COURT MUNICIPAL ORDINANCE | H22: 0 | I22: 0 | J22: 0 | K22: 0 | L22: 0
A23: IN | B23: COUNTY COURT INFRACTIONS | H23: 0 | I23: 0 | J23: 0 | K23: 0 | L23: 0
A24: CT | B24: COUNTY CRIMINAL TRAFFIC | H24: 0 | I24: 0 | J24: 0 | K24: 0 | L24: 0
A25: TOTAL OF CRIMINAL DOCUMENTS | D25: =SUM(D18:D24) -> 0 | E25: =SUM(E18:E24) -> 0 | F25: =SUM(F18:F24) -> 0 | G25: =SUM(G18:G24) -> 0 | H25: =SUM(E25:G25) -> 0 | I25: =IF($D25>0,E25/$D25,0) -> 0 | J25: 0 | K25: 0 | L25: =IF(G25>0,H25/$D25,0) -> 0
A27: TR | B27: COUNTY CIVIL TRAFFIC | H27: =SUM(E27:G27) -> 0 | I27: =IF($D27>0,E27/$D27,0) -> 0 | J27: =IF($D27>0,F27/$D27,0) -> 0 | K27: 0 | L27: 0
A29: TOTAL ALL COURT DOCUMENTS | D29: =D16+D25+D27 -> 0 | E29: =E16+E25+E27 -> 0 | F29: =F16+F25+F27 -> 0 | G29: =G16+G25+G27 -> 0 | H29: =SUM(E29:G29) -> 0 | I29: =IF($D29>0,E29/$D29,0) -> 0 | J29: =IF($D29>0,F29/$D29,0) -> 0 | K29: 0 | L29: 0

Sheet SUMMARY
A1: CLERK OF THE COURTS
A2: BREVARD COUNTY, FLORIDA
A3: Document Source Statistics January 1, 2017 - December 31, 2017
A4: Number of Documents Filed by Case Category
A6: Case | B6: Category | D6: Total # of Documents Filed | E6: Documents Filed InCourt | F6: Documents Filed Informix | G6: Documents e-Filed | H6: Total Docs Auto-Docketed | I6: % of TOTAL InCourt | J6: % of TOTAL Informix | K6: % of TOTAL e-Filed | L6: Total % of Documents Auto Docketed
A7: AP | B7: APPEALS | D7: =JAN!D7+FEB!D7+MAR!D7+APR!D7+MAY!D7+JUN!D7+JUL!D7+AUG!D7+SEP!D7+OCT!D7+NOV!D7+DEC!D7 -> 63 | E7: 0 | F7: =JAN!F7+FEB!F7+MAR!F7+APR!F7+MAY!F7+JUN!F7+JUL!F7+AUG!F7+SEP!F7+OCT!F7+NOV!F7+DEC!F7 -> 0 | G7: =JAN!G7+FEB!G7+MAR!G7+APR!G7+MAY!G7+JUN!G7+JUL!G7+AUG!G7+SEP!G7+OCT!G7+NOV!G7+DEC!G7 -> 50 | H7: =E7+F7+G7 -> 50 | I7: =IF($D7>0,E7/$D7,0) -> 0 | J7: =IF($D7>0,F7/$D7,0) -> 0 | K7: =IF($D7>0,G7/$D7,0) -> 0.7936507937 | L7: =SUM(I7:K7) -> 0.7936507937
A8: CA | B8: CIRCUIT CIVIL | D8: =JAN!D8+FEB!D8+MAR!D8+APR!D8+MAY!D8+JUN!D8+JUL!D8+AUG!D8+SEP!D8+OCT!D8+NOV!D8+DEC!D8 -> 16052 | E8: =JAN!E8+FEB!E8+MAR!E8+APR!E8+MAY!E8+JUN!E8+JUL!E8+AUG!E8+SEP!E8+OCT!E8+NOV!E8+DEC!E8 -> 0 | F8: 0 | G8: =JAN!G8+FEB!G8+MAR!G8+APR!G8+MAY!G8+JUN!G8+JUL!G8+AUG!G8+SEP!G8+OCT!G8+NOV!G8+DEC!G8 -> 13249 | H8: =E8+F8+G8 -> 13249 | I8: =IF($D8>0,E8/$D8,0) -> 0 | J8: 0 | K8: 0.825380015 | L8: =SUM(I8:K8) -> 0.825380015
A9: SC | B9: COUNTY CIVIL SMALL CLAIMS | D9: =JAN!D9+FEB!D9+MAR!D9+APR!D9+MAY!D9+JUN!D9+JUL!D9+AUG!D9+SEP!D9+OCT!D9+NOV!D9+DEC!D9 -> 4365 | E9: =JAN!E9+FEB!E9+MAR!E9+APR!E9+MAY!E9+JUN!E9+JUL!E9+AUG!E9+SEP!E9+OCT!E9+NOV!E9+DEC!E9 -> 0 | F9: =JAN!F9+FEB!F9+MAR!F9+APR!F9+MAY!F9+JUN!F9+JUL!F9+AUG!F9+SEP!F9+OCT!F9+NOV!F9+DEC!F9 -> 0 | G9: =JAN!G9+FEB!G9+MAR!G9+APR!G9+MAY!G9+JUN!G9+JUL!G9+AUG!G9+SEP!G9+OCT!G9+NOV!G9+DEC!G9 -> 3534 | H9: 3534 | I9: 0 | J9: 0 | K9: 0.8096219931 | L9: 0.8096219931
A10: DR | B10: CIRCUIT CIVIL FAMILY | D10: =JAN!D10+FEB!D10+MAR!D10+APR!D10+MAY!D10+JUN!D10+JUL!D10+AUG!D10+SEP!D10+OCT!D10+NOV!D10+DEC!D10 -> 14919 | E10: =JAN!E10+FEB!E10+MAR!E10+APR!E10+MAY!E10+JUN!E10+JUL!E10+AUG!E10+SEP!E10+OCT!E10+NOV!E10+DEC!E10 -> 0 | F10: =JAN!F10+FEB!F10+MAR!F10+APR!F10+MAY!F10+JUN!F10+JUL!F10+AUG!F10+SEP!F10+OCT!F10+NOV!F10+DEC!F10 -> 0 | G10: =JAN!G10+FEB!G10+MAR!G10+APR!G10+MAY!G10+JUN!G10+JUL!G10+AUG!G10+SEP!G10+OCT!G10+NOV!G10+DEC!G10 -> 7590 | H10: 7590 | I10: 0 | J10: 0 | K10: 0.5087472351 | L10: 0.5087472351
A11: CP | B11: CIRCUIT CIVIL PROBATE | D11: =JAN!D11+FEB!D11+MAR!D11+APR!D11+MAY!D11+JUN!D11+JUL!D11+AUG!D11+SEP!D11+OCT!D11+NOV!D11+DEC!D11 -> 4084 | E11: =JAN!E11+FEB!E11+MAR!E11+APR!E11+MAY!E11+JUN!E11+JUL!E11+AUG!E11+SEP!E11+OCT!E11+NOV!E11+DEC!E11 -> 0 | F11: =JAN!F11+FEB!F11+MAR!F11+APR!F11+MAY!F11+JUN!F11+JUL!F11+AUG!F11+SEP!F11+OCT!F11+NOV!F11+DEC!F11 -> 0 | G11: =JAN!G11+FEB!G11+MAR!G11+APR!G11+MAY!G11+JUN!G11+JUL!G11+AUG!G11+SEP!G11+OCT!G11+NOV!G11+DEC!G11 -> 3358 | H11: 3358 | I11: 0 | J11: 0 | K11: 0.8222331048 | L11: 0.8222331048
A12: GA | B12: CIRCUIT CIVIL GUARDIANSHIP | D12: =JAN!D12+FEB!D12+MAR!D12+APR!D12+MAY!D12+JUN!D12+JUL!D12+AUG!D12+SEP!D12+OCT!D12+NOV!D12+DEC!D12 -> 1536 | E12: =JAN!E12+FEB!E12+MAR!E12+APR!E12+MAY!E12+JUN!E12+JUL!E12+AUG!E12+SEP!E12+OCT!E12+NOV!E12+DEC!E12 -> 0 | F12: =JAN!F12+FEB!F12+MAR!F12+APR!F12+MAY!F12+JUN!F12+JUL!F12+AUG!F12+SEP!F12+OCT!F12+NOV!F12+DEC!F12 -> 0 | G12: =JAN!G12+FEB!G12+MAR!G12+APR!G12+MAY!G12+JUN!G12+JUL!G12+AUG!G12+SEP!G12+OCT!G12+NOV!G12+DEC!G12 -> 1438 | H12: 1438 | I12: 0 | J12: 0 | K12: 0.9361979167 | L12: 0.9361979167
A13: MH | B13: CIRCUIT CIVIL MENTAL HEALTH | D13: =JAN!D13+FEB!D13+MAR!D13+APR!D13+MAY!D13+JUN!D13+JUL!D13+AUG!D13+SEP!D13+OCT!D13+NOV!D13+DEC!D13 -> 716 | E13: =JAN!E13+FEB!E13+MAR!E13+APR!E13+MAY!E13+JUN!E13+JUL!E13+AUG!E13+SEP!E13+OCT!E13+NOV!E13+DEC!E13 -> 0 | F13: =JAN!F13+FEB!F13+MAR!F13+APR!F13+MAY!F13+JUN!F13+JUL!F13+AUG!F13+SEP!F13+OCT!F13+NOV!F13+DEC!F13 -> 0 | G13: =JAN!G13+FEB!G13+MAR!G13+APR!G13+MAY!G13+JUN!G13+JUL!G13+AUG!G13+SEP!G13+OCT!G13+NOV!G13+DEC!G13 -> 262 | H13: 262 | I13: 0 | J13: 0 | K13: 0.3659217877 | L13: 0.3659217877
A14: CC | B14: COUNTY CIVIL | D14: =JAN!D14+FEB!D14+MAR!D14+APR!D14+MAY!D14+JUN!D14+JUL!D14+AUG!D14+SEP!D14+OCT!D14+NOV!D14+DEC!D14 -> 5146 | E14: =JAN!E14+FEB!E14+MAR!E14+APR!E14+MAY!E14+JUN!E14+JUL!E14+AUG!E14+SEP!E14+OCT!E14+NOV!E14+DEC!E14 -> 0 | F14: =JAN!F14+FEB!F14+MAR!F14+APR!F14+MAY!F14+JUN!F14+JUL!F14+AUG!F14+SEP!F14+OCT!F14+NOV!F14+DEC!F14 -> 0 | G14: =JAN!G14+FEB!G14+MAR!G14+APR!G14+MAY!G14+JUN!G14+JUL!G14+AUG!G14+SEP!G14+OCT!G14+NOV!G14+DEC!G14 -> 3484 | H14: 3484 | I14: 0 | J14: 0 | K14: 0.6770307035 | L14: 0.6770307035
A15: DP | B15: CIRCUIT JUVENILE DEPENDENCY | D15: =JAN!D15+FEB!D15+MAR!D15+APR!D15+MAY!D15+JUN!D15+JUL!D15+AUG!D15+SEP!D15+OCT!D15+NOV!D15+DEC!D15 -> 2913 | E15: =JAN!E15+FEB!E15+MAR!E15+APR!E15+MAY!E15+JUN!E15+JUL!E15+AUG!E15+SEP!E15+OCT!E15+NOV!E15+DEC!E15 -> 0 | F15: =JAN!F15+FEB!F15+MAR!F15+APR!F15+MAY!F15+JUN!F15+JUL!F15+AUG!F15+SEP!F15+OCT!F15+NOV!F15+DEC!F15 -> 0 | G15: =JAN!G15+FEB!G15+MAR!G15+APR!G15+MAY!G15+JUN!G15+JUL!G15+AUG!G15+SEP!G15+OCT!G15+NOV!G15+DEC!G15 -> 2111 | H15: 2111 | I15: 0 | J15: 0 | K15: 0.7246824579 | L15: 0.7246824579
A16: TOTAL OF CIVIL DOCUMENTS | D16: =SUM(D7:D15) -> 49794 | E16: =SUM(E7:E15) -> 0 | F16: 0 | G16: =SUM(G7:G15) -> 35076 | H16: =SUM(H7:H15) -> 35076 | I16: =IF($D16>0,E16/$D16,0) -> 0 | J16: =IF($D16>0,F16/$D16,0) -> 0 | K16: =IF($D16>0,G16/$D16,0) -> 0.7044222195 | L16: 0.7044222195
A18: CJ | B18: CIRCUIT JUVENILE DELINQUENCY | D18: =JAN!D18+FEB!D18+MAR!D18+APR!D18+MAY!D18+JUN!D18+JUL!D18+AUG!D18+SEP!D18+OCT!D18+NOV!D18+DEC!D18 -> 7766 | E18: =JAN!E18+FEB!E18+MAR!E18+APR!E18+MAY!E18+JUN!E18+JUL!E18+AUG!E18+SEP!E18+OCT!E18+NOV!E18+DEC!E18 -> 5335 | F18: =JAN!F18+FEB!F18+MAR!F18+APR!F18+MAY!F18+JUN!F18+JUL!F18+AUG!F18+SEP!F18+OCT!F18+NOV!F18+DEC!F18 -> 10 | G18: =JAN!G18+FEB!G18+MAR!G18+APR!G18+MAY!G18+JUN!G18+JUL!G18+AUG!G18+SEP!G18+OCT!G18+NOV!G18+DEC!G18 -> 1259 | H18: =SUM(E18:G18) -> 6604 | I18: =IF($D18>0,E18/$D18,0) -> 0.6869688385 | J18: 0.001287664177 | K18: 0.1621169199 | L18: =SUM(I18:K18) -> 0.8503734226
A19: CF | B19: CIRCUIT CRIMINAL FELONY | D19: =JAN!D19+FEB!D19+MAR!D19+APR!D19+MAY!D19+JUN!D19+JUL!D19+AUG!D19+SEP!D19+OCT!D19+NOV!D19+DEC!D19 -> 29385 | E19: =JAN!E19+FEB!E19+MAR!E19+APR!E19+MAY!E19+JUN!E19+JUL!E19+AUG!E19+SEP!E19+OCT!E19+NOV!E19+DEC!E19 -> 9575 | F19: =JAN!F19+FEB!F19+MAR!F19+APR!F19+MAY!F19+JUN!F19+JUL!F19+AUG!F19+SEP!F19+OCT!F19+NOV!F19+DEC!F19 -> 457 | G19: =JAN!G19+FEB!G19+MAR!G19+APR!G19+MAY!G19+JUN!G19+JUL!G19+AUG!G19+SEP!G19+OCT!G19+NOV!G19+DEC!G19 -> 7106 | H19: =SUM(E19:G19) -> 17138 | I19: 0.3258465203 | J19: 0.01555215246 | K19: 0.2418240599 | L19: 0.5832227327
A20: MM | B20: COUNTY CRIMINAL MISDEMEANOR | D20: =JAN!D20+FEB!D20+MAR!D20+APR!D20+MAY!D20+JUN!D20+JUL!D20+AUG!D20+SEP!D20+OCT!D20+NOV!D20+DEC!D20 -> 13824 | E20: =JAN!E20+FEB!E20+MAR!E20+APR!E20+MAY!E20+JUN!E20+JUL!E20+AUG!E20+SEP!E20+OCT!E20+NOV!E20+DEC!E20 -> 5803 | F20: =JAN!F20+FEB!F20+MAR!F20+APR!F20+MAY!F20+JUN!F20+JUL!F20+AUG!F20+SEP!F20+OCT!F20+NOV!F20+DEC!F20 -> 156 | G20: =JAN!G20+FEB!G20+MAR!G20+APR!G20+MAY!G20+JUN!G20+JUL!G20+AUG!G20+SEP!G20+OCT!G20+NOV!G20+DEC!G20 -> 2247 | H20: 8206 | I20: 0.4197771991 | J20: 0.01128472222 | K20: 0.1625434028 | L20: 0.5936053241
A21: CO | B21: COUNTY ORDINANCE | D21: =JAN!D21+FEB!D21+MAR!D21+APR!D21+MAY!D21+JUN!D21+JUL!D21+AUG!D21+SEP!D21+OCT!D21+NOV!D21+DEC!D21 -> 61 | E21: =JAN!E21+FEB!E21+MAR!E21+APR!E21+MAY!E21+JUN!E21+JUL!E21+AUG!E21+SEP!E21+OCT!E21+NOV!E21+DEC!E21 -> 23 | F21: =JAN!F21+FEB!F21+MAR!F21+APR!F21+MAY!F21+JUN!F21+JUL!F21+AUG!F21+SEP!F21+OCT!F21+NOV!F21+DEC!F21 -> 0 | G21: =JAN!G21+FEB!G21+MAR!G21+APR!G21+MAY!G21+JUN!G21+JUL!G21+AUG!G21+SEP!G21+OCT!G21+NOV!G21+DEC!G21 -> 7 | H21: 30 | I21: 0.3770491803 | J21: 0 | K21: 0.1147540984 | L21: 0.4918032787
A22: MO | B22: COUNTY COURT MUNICIPAL ORDINANCE | D22: =JAN!D22+FEB!D22+MAR!D22+APR!D22+MAY!D22+JUN!D22+JUL!D22+AUG!D22+SEP!D22+OCT!D22+NOV!D22+DEC!D22 -> 149 | E22: =JAN!E22+FEB!E22+MAR!E22+APR!E22+MAY!E22+JUN!E22+JUL!E22+AUG!E22+SEP!E22+OCT!E22+NOV!E22+DEC!E22 -> 79 | F22: =JAN!F22+FEB!F22+MAR!F22+APR!F22+MAY!F22+JUN!F22+JUL!F22+AUG!F22+SEP!F22+OCT!F22+NOV!F22+DEC!F22 -> 6 | G22: =JAN!G22+FEB!G22+MAR!G22+APR!G22+MAY!G22+JUN!G22+JUL!G22+AUG!G22+SEP!G22+OCT!G22+NOV!G22+DEC!G22 -> 17 | H22: 102 | I22: 0.5302013423 | J22: 0.04026845638 | K22: 0.1140939597 | L22: 0.6845637584
A23: IN | B23: COUNTY COURT INFRACTIONS | D23: =JAN!D23+FEB!D23+MAR!D23+APR!D23+MAY!D23+JUN!D23+JUL!D23+AUG!D23+SEP!D23+OCT!D23+NOV!D23+DEC!D23 -> 652 | E23: =JAN!E23+FEB!E23+MAR!E23+APR!E23+MAY!E23+JUN!E23+JUL!E23+AUG!E23+SEP!E23+OCT!E23+NOV!E23+DEC!E23 -> 25 | F23: =JAN!F23+FEB!F23+MAR!F23+APR!F23+MAY!F23+JUN!F23+JUL!F23+AUG!F23+SEP!F23+OCT!F23+NOV!F23+DEC!F23 -> 0 | G23: =JAN!G23+FEB!G23+MAR!G23+APR!G23+MAY!G23+JUN!G23+JUL!G23+AUG!G23+SEP!G23+OCT!G23+NOV!G23+DEC!G23 -> 4 | H23: 29 | I23: 0.03834355828 | J23: 0 | K23: 0.006134969325 | L23: 0.04447852761
A24: CT | B24: COUNTY CRIMINAL TRAFFIC | D24: =JAN!D24+FEB!D24+MAR!D24+APR!D24+MAY!D24+JUN!D24+JUL!D24+AUG!D24+SEP!D24+OCT!D24+NOV!D24+DEC!D24 -> 12023 | E24: =JAN!E24+FEB!E24+MAR!E24+APR!E24+MAY!E24+JUN!E24+JUL!E24+AUG!E24+SEP!E24+OCT!E24+NOV!E24+DEC!E24 -> 5761 | F24: =JAN!F24+FEB!F24+MAR!F24+APR!F24+MAY!F24+JUN!F24+JUL!F24+AUG!F24+SEP!F24+OCT!F24+NOV!F24+DEC!F24 -> 291 | G24: =JAN!G24+FEB!G24+MAR!G24+APR!G24+MAY!G24+JUN!G24+JUL!G24+AUG!G24+SEP!G24+OCT!G24+NOV!G24+DEC!G24 -> 1575 | H24: 7627 | I24: 0.4791649339 | J24: 0.02420360975 | K24: 0.1309989187 | L24: 0.6343674624
A25: TOTAL OF CRIMINAL DOCUMENTS | D25: =SUM(D18:D24) -> 63860 | E25: =SUM(E18:E24) -> 26601 | F25: =SUM(F18:F24) -> 920 | G25: 12215 | H25: 39736 | I25: =IF($D25>0,E25/$D25,0) -> 0.4165518321 | J25: 0.01440651425 | K25: 0.1912777952 | L25: =IF(G25>0,H25/$D25,0) -> 0.6222361416
A27: TR | B27: COUNTY CIVIL TRAFFIC | D27: =JAN!D27+FEB!D27+MAR!D27+APR!D27+MAY!D27+JUN!D27+JUL!D27+AUG!D27+SEP!D27+OCT!D27+NOV!D27+DEC!D27 -> 8812 | E27: =JAN!E27+FEB!E27+MAR!E27+APR!E27+MAY!E27+JUN!E27+JUL!E27+AUG!E27+SEP!E27+OCT!E27+NOV!E27+DEC!E27 -> 792 | F27: =JAN!F27+FEB!F27+MAR!F27+APR!F27+MAY!F27+JUN!F27+JUL!F27+AUG!F27+SEP!F27+OCT!F27+NOV!F27+DEC!F27 -> 1828 | G27: =JAN!G27+FEB!G27+MAR!G27+APR!G27+MAY!G27+JUN!G27+JUL!G27+AUG!G27+SEP!G27+OCT!G27+NOV!G27+DEC!G27 -> 213 | H27: =SUM(E27:G27) -> 2833 | I27: =IF($D27>0,E27/$D27,0) -> 0.08987743985 | J27: =IF($D27>0,F27/$D27,0) -> 0.207444394 | K27: 0.0241715842 | L27: 0.3214934181
A29: TOTAL ALL COURT DOCUMENTS | D29: =D16+D25+D27 -> 122466 | E29: =E16+E25+E27 -> 27393 | F29: =F16+F25+F27 -> 2748 | G29: =G16+G25+G27 -> 47504 | H29: =SUM(E29:G29) -> 77645 | I29: =IF($D29>0,E29/$D29,0) -> 0.2236784087 | J29: =IF($D29>0,F29/$D29,0) -> 0.022438881 | K29: 0.3878954159 | L29: 0.6340127056
